bitfinex/quotes_SOLUSD_20240906
["timestamp","ask_amount","ask_price","bid_price","bid_amount"]
[1725638201182,11.99605876,128.54,128.48,7.7832]
[1725638201591,1.35522492,128.54,128.51,7.7811]
[1725638201768,1.35522492,128.54,128.5,7.782]
[1725638202073,1.35522492,128.54,128.5,71.26797422]
[1725638202586,1.35522492,128.54,128.5,63.48597422]
[1725638202790,1.35522492,128.54,128.48,44.03097422]
[1725638202964,1.35522492,128.54,128.48,51.81387422]
[1725638203372,9.13492492,128.54,128.48,51.81387422]
[1725638203579,9.13492492,128.54,128.47,19.4593]
[1725638203580,7.7812,128.52,128.46,51.81507422]
[1725638203773,1.94579449,128.51,128.46,51.81507422]
[1725638204183,1.94579449,128.51,128.45,16.69996479]
[1725638204389,3.30109203,128.54,128.44,44.03097422]
[1725638204574,9.13522492,128.54,128.47,7.7836]
[1725638204776,11.0809477,128.54,128.47,7.7836]
[1725638205582,3.3009477,128.54,128.46,71.27577422]
[1725638205788,7.781,128.52,128.46,63.49147422]
[1725638206001,1.94586363,128.51,128.46,71.27577422]
[1725638206308,7.781,128.52,128.46,71.27577422]
[1725638206679,7.7804,128.53,128.46,71.27577422]
[1725638208275,7.7804,128.53,128.47,7.7837]
[1725638208481,15.1927,128.52,128.46,44.03097422]
[1725638208682,52.7815,128.51,128.44,51.81657422]
[1725638208882,54.72763682,128.51,128.44,51.81657422]
[1725638209204,52.7815,128.51,128.44,51.81657422]
[1725638209495,52.7815,128.51,128.45,7.785]
[1725638210082,22.9737,128.52,128.46,7.7843]
[1725638211801,25.87435493,128.52,128.46,7.7843]
[1725638212005,23.87435493,128.52,128.46,7.7843]
[1725638212179,13.1927,128.52,128.47,19.459]
[1725638212378,13.1927,128.52,128.46,51.81507422]
[1725638212379,1.94570955,128.51,128.46,51.81507422]
[1725638212600,1.94570955,128.51,128.45,7.7849]
[1725638212902,7.7816,128.51,128.45,7.7849]
[1725638213086,1.35559929,128.5,128.45,7.7849]
[1725638213702,9.13769929,128.5,128.44,71.27937422]
[1725638214593,9.13769929,128.5,128.46,19.4611]
[1725638214594,1.35559929,128.5,128.46,19.4611]
[1725638214801,15.13841065,128.52,128.46,19.4611]
[1725638215017,1.35557361,128.5,128.46,19.4611]
[1725638215306,9.13787361,128.5,128.44,44.03097422]
[1725638215482,7.7839,128.47,128.42,44.03097422]
[1725638215682,7.7835,128.48,128.42,7.7869]
[1725638216084,7.7829,128.49,128.44,35.00740289]
[1725638216684,7.49077361,128.5,128.46,35.00740289]
[1725638217097,13.1927,128.52,128.48,42.79020289]
[1725638217299,13.1927,128.52,128.48,35.00740289]
[1725638217501,1.35516229,128.53,128.5,35.00740289]
[1725638217705,15.1438,128.55,128.51,1.55605198]
[1725638217879,16.4986698,128.55,128.5,42.78920289]
[1725638218079,16.4986698,128.55,128.5,62.24410289]
[1725638218299,24.2778698,128.55,128.5,54.46230289]
[1725638218506,24.2778698,128.55,128.5,35.00740289]
[1725638218920,7.7796,128.54,128.5,35.00740289]
[1725638219213,24.2778698,128.55,128.5,35.00740289]
[1725638219702,7.7803,128.53,128.48,35.00740289]
[1725638219905,7.7803,128.53,128.47,70.96186088]
[1725638220096,7.7803,128.53,128.48,30.0]
[1725638220611,7.7798,128.54,128.48,37.7832]
[1725638220911,1.94546332,128.54,128.48,30.0]
[1725638221086,1.94546332,128.54,128.43,386.5602]
[1725638221087,7.7827,128.49,128.43,431.70596088]
[1725638221287,7.7835,128.48,128.42,7.7864]
[1725638221492,7.7829,128.49,128.43,7.7862]
[1725638221908,7.7833,128.48,128.43,7.7862]
[1725638222204,7.7833,128.48,128.42,7.7868]
[1725638222611,1.94614465,128.51,128.41,82.65576088]
[1725638222784,7.7823,128.5,128.44,7.7853]
[1725638222987,7.7827,128.49,128.43,70.97136088]
[1725638223208,7.7827,128.49,128.43,27.2515]
[1725638223806,7.7835,128.48,128.43,19.4654]
[1725638224707,1.94619796,128.47,128.41,43.71986088]
[1725638225015,16.6316,128.5,128.4,7.7876]
[1725638225016,14.4443,128.46,128.4,7.7876]
[1725638225198,6.6596,128.49,128.43,43.71986088]
[1725638225920,16.6316,128.5,128.45,43.71986088]
[1725638226709,16.6316,128.5,128.45,70.96736088]
[1725638227095,9.03527496,128.52,128.47,43.71986088]
[1725638227096,13.892,128.52,128.47,43.71986088]
[1725638227788,13.892,128.52,128.47,63.17936088]
[1725638227789,6.111,128.52,128.47,63.17936088]
[1725638227992,19.30740011,128.54,128.47,63.17936088]
[1725638228216,19.30740011,128.54,128.48,45.0]
[1725638228423,16.4915,128.54,128.48,45.0]
[1725638228803,1.94529786,128.53,128.45,43.71986088]
[1725638229000,7.7823,128.5,128.44,27.2498]
[1725638229618,7.7835,128.48,128.41,63.18736088]
[1725638229795,7.7828,128.49,128.43,7.7863]
[1725638229993,7.7821,128.5,128.44,7.7854]
[1725638230195,19.4523,128.52,128.44,7.7854]
[1725638230402,7.7827,128.49,128.43,27.2509]
[1725638231518,7.7829,128.49,128.43,27.2507]
[1725638232008,1.94616159,128.51,128.41,52.63743761]
[1725638232212,1.94616159,128.51,128.41,43.71986088]
[1725638232213,7.7845,128.46,128.41,43.71986088]
[1725638232511,15.2208,128.48,128.39,51.50836088]
[1725638232512,7.7858,128.44,128.39,51.50836088]
[1725638232719,7.7858,128.44,128.38,22.77457673]
[1725638232889,7.7853,128.45,128.39,7.7886]
[1725638233094,7.7853,128.45,128.39,9.3460206]
[1725638233293,1.94663271,128.44,128.38,8.92058019]
[1725638233503,21.40832029,128.46,128.37,63.19336088]
[1725638233710,45.0,128.45,128.36,13.82822649]
[1725638234020,45.0,128.45,128.36,4.06770727]
[1725638234021,6.4538,128.44,128.36,4.06770727]
[1725638234214,7.7874,128.42,128.36,4.06770727]
[1725638234420,7.7864,128.43,128.37,7.7895]
[1725638235320,6.4538,128.44,128.39,51.50836088]
[1725638235518,24.49287287,128.48,128.41,7.7874]
[1725638235821,7.784,128.47,128.41,51.50736088]
[1725638236407,7.7845,128.46,128.41,43.71986088]
[1725638236806,7.784,128.47,128.41,51.50726088]
[1725638237007,32.27637287,128.48,128.42,9.34385234]
[1725638237318,7.7839,128.47,128.41,51.50716088]
[1725638237825,7.7862,128.44,128.39,43.71986088]
[1725638238121,9.14063367,128.46,128.4,7.7879]
[1725638238508,1.35593367,128.46,128.41,63.18846088]
[1725638238903,1.35593367,128.46,128.42,9.3437836]
[1725638239110,32.27637287,128.48,128.42,9.3437836]
[1725638239427,33.63219812,128.48,128.42,9.3437836]
[1725638239922,1.9462047,128.47,128.39,43.71986088]
[1725638240121,7.7847,128.46,128.4,52.788]
[1725638240430,25.84869812,128.48,128.4,64.4703]
[1725638240431,45.30739812,128.48,128.4,64.4703]
[1725638240602,7.7847,128.46,128.4,64.4703]
[1725638240920,7.7847,128.46,128.4,72.2582]
[1725638241707,7.7847,128.46,128.41,7.7874]
[1725638242597,7.7874,128.42,128.37,19.4735]
[1725638242818,7.7864,128.43,128.37,27.2629]
[1725638243011,19.4617,128.46,128.37,27.2629]
[1725638243201,7.7865,128.43,128.37,27.2629]
[1725638243402,7.7865,128.43,128.38,43.71986088]
[1725638244606,7.7859,128.44,128.38,51.50916088]
[1725638245231,7.7852,128.45,128.39,7.7886]
[1725638245432,7.7852,128.45,128.39,52.7886]
[1725638246531,16.57662525,128.48,128.44,7.7851]
[1725638246729,1.35582525,128.48,128.44,7.7851]
[1725638246902,1.35582525,128.48,128.43,27.2513]
[1725638247506,1.35582525,128.48,128.4,43.71986088]
[1725638247817,7.7859,128.44,128.39,45.0]
[1725638248629,1.35582525,128.48,128.39,7.7887]
[1725638248831,1.35582525,128.48,128.38,43.71986088]
[1725638249013,7.7852,128.45,128.39,7.7885]
[1725638249211,7.7857,128.44,128.38,51.50916088]
[1725638249510,16.1348,128.45,128.37,27.2637]
[1725638250133,7.7857,128.44,128.38,7.7889]
[1725638250536,7.7857,128.44,128.38,51.50876088]
[1725638250721,7.7857,128.44,128.39,45.0]
[1725638251122,23.92,128.45,128.39,52.7883]
[1725638251331,7.7858,128.44,128.39,52.7883]
[1725638251929,7.7864,128.43,128.37,19.474]
[1725638252315,7.7864,128.43,128.37,27.2634]
[1725638252832,7.7864,128.43,128.38,7.789]
[1725638253030,16.1348,128.45,128.39,9.34600238]
[1725638253333,16.1348,128.45,128.4,98.06513956]
[1725638253534,23.9199,128.45,128.4,96.50786088]
[1725638254422,23.9199,128.45,128.39,27.2601]
[1725638254818,7.7858,128.44,128.39,19.4714]
[1725638255228,7.7858,128.44,128.39,27.2601]
[1725638255935,16.1348,128.45,128.36,63.19506088]
[1725638256239,7.7872,128.42,128.37,7.7899]
[1725638257520,7.787,128.42,128.37,7.7899]
[1725638258321,7.787,128.42,128.36,70.98536088]
[1725638258923,7.787,128.42,128.37,7.7899]
[1725638259443,7.7879,128.41,128.36,70.98536088]
[1725638259742,3.303475,128.43,128.34,43.71986088]
[1725638259926,7.7887,128.39,128.34,51.51116088]
[1725638260439,7.7885,128.4,128.35,7.7911]
[1725638260748,7.7877,128.41,128.36,7.7905]
[1725638260920,7.7877,128.41,128.36,51.51036088]
[1725638261493,1.35647257,128.43,128.38,7.7891]
[1725638261651,23.9202,128.45,128.39,52.7885]
[1725638261938,23.9202,128.45,128.39,45.0]
[1725638261939,16.1348,128.45,128.39,45.0]
[1725638262149,16.1348,128.45,128.36,43.71986088]
[1725638262449,7.788,128.41,128.36,51.51026088]
[1725638262626,35.5976,128.45,128.36,43.71986088]
[1725638263027,20.0,128.44,128.36,43.71986088]
[1725638263235,20.0,128.44,128.36,63.19606088]
[1725638263821,20.0,128.44,128.36,70.98606088]
[1725638264022,7.7871,128.42,128.36,70.98606088]
[1725638264221,20.0,128.44,128.37,45.0]
[1725638264449,20.0,128.44,128.37,52.7895]
[1725638264628,20.0,128.44,128.36,63.19606088]
[1725638264831,7.7883,128.4,128.35,7.7911]
[1725638265039,7.7883,128.4,128.36,45.0]
[1725638265630,19.4675,128.42,128.34,43.71986088]
[1725638265836,19.4675,128.42,128.34,51.51126088]
[1725638266037,20.0,128.44,128.35,7.7911]
[1725638266038,7.7883,128.4,128.35,7.7911]
[1725638266237,7.7883,128.4,128.36,1.55767736]
[1725638266432,7.7888,128.39,128.35,35.04424426]
[1725638266632,7.7882,128.4,128.35,35.04424426]
[1725638267430,7.7887,128.39,128.35,35.04424426]
[1725638267842,19.4663,128.43,128.35,35.04424426]
[1725638267843,7.7884,128.4,128.35,35.04424426]
[1725638269150,7.7889,128.39,128.35,35.04424426]
[1725638269354,7.7893,128.38,128.33,62.31644426]
[1725638269530,7.7893,128.38,128.34,45.0]
[1725638269929,7.7888,128.39,128.34,52.7917]
[1725638270235,7.7888,128.39,128.35,35.04424426]
[1725638270937,22.36749,128.43,128.37,35.04424426]
[1725638271126,20.0,128.42,128.37,35.04424426]
[1725638271322,20.0,128.42,128.36,1.5576523]
[1725638271547,20.0,128.42,128.35,54.52214426]
[1725638271749,7.7888,128.39,128.35,54.52214426]
[1725638271953,7.7888,128.39,128.35,35.04424426]
[1725638272729,7.7881,128.4,128.35,42.83504426]
[1725638273649,7.7877,128.41,128.36,72.2667]
[1725638274857,7.7881,128.4,128.36,72.2667]
[1725638275051,7.7881,128.4,128.36,64.4763]
[1725638275537,7.7899,128.38,128.34,7.7917]
[1725638277251,7.7889,128.39,128.34,7.7917]
[1725638277957,18.07541496,128.4,128.31,63.45433178]
[1725638278156,19.4749,128.38,128.3,8.92608752]
[1725638278332,19.4749,128.38,128.28,19.4871]
[1725638278333,7.7926,128.33,128.28,62.32634426]
[1725638278732,7.7931,128.32,128.28,62.32634426]
[1725638278959,7.7926,128.33,128.28,62.32634426]
[1725638279157,19.4785,128.35,128.27,7.7958]
[1725638279336,16.1281,128.4,128.27,7.7958]
[1725638279337,58.4228,128.38,128.29,7.7944]
[1725638279544,20.0,128.37,128.3,35.04424426]
[1725638279850,20.0,128.37,128.3,42.83824426]
[1725638279851,7.7916,128.35,128.3,42.83824426]
[1725638280653,7.7916,128.35,128.31,7.7935]
[1725638280965,7.7916,128.35,128.3,42.83814426]
[1725638281265,7.7907,128.36,128.31,52.7935]
[1725638281466,7.7907,128.36,128.32,35.04424426]
[1725638282335,7.79,128.37,128.33,45.0]
[1725638282839,7.7896,128.38,128.33,52.7923]
[1725638283039,7.7896,128.38,128.34,35.04424426]
[1725638283252,1.35675634,128.41,128.36,35.04424426]
[1725638283461,15.15,128.44,128.39,35.04424426]
[1725638283670,7.7858,128.44,128.4,19.4696]
[1725638283842,7.7858,128.44,128.41,35.04424426]
[1725638284045,23.1139616,128.47,128.41,42.83174426]
[1725638284238,7.7849,128.46,128.41,42.83174426]
[1725638284545,7.7851,128.45,128.41,35.04424426]
[1725638284952,7.7846,128.46,128.41,42.83164426]
[1725638285151,2.94713934,128.48,128.43,35.04424426]
[1725638285342,16.5708865,128.5,128.43,35.04424426]
[1725638285549,7.7845,128.46,128.43,35.04424426]
[1725638285764,19.4574,128.49,128.41,35.04424426]
[1725638285967,1.94624718,128.48,128.41,43.76674131]
[1725638286269,7.7874,128.42,128.38,22.5103]
[1725638286447,7.7874,128.42,128.37,43.76674131]
[1725638286850,7.7877,128.41,128.37,43.76674131]
[1725638287044,7.7881,128.4,128.37,43.76674131]
[1725638287246,7.7876,128.41,128.36,27.2664]
[1725638287652,7.7881,128.4,128.36,19.4759]
[1725638288373,7.7881,128.4,128.35,72.90064131]
[1725638288847,19.4664,128.43,128.33,443.44684131]
[1725638289046,65.0,128.42,128.33,443.44684131]
[1725638289266,7.7888,128.39,128.34,7.7915]
[1725638289479,7.7888,128.39,128.33,451.23874131]
[1725638289784,7.7888,128.39,128.33,71.03874131]
[1725638290068,7.7895,128.38,128.33,71.03874131]
[1725638290373,7.7901,128.37,128.33,63.24684131]
[1725638290745,7.7895,128.38,128.33,63.24684131]
[1725638290975,7.7901,128.37,128.33,63.24684131]
[1725638291145,20.0,128.42,128.33,63.24684131]
[1725638291146,7.7895,128.38,128.33,71.03914131]
[1725638291459,20.0,128.42,128.35,43.76674131]
[1725638291667,20.0,128.43,128.35,63.24384131]
[1725638291865,20.0,128.43,128.36,45.0]
[1725638292651,7.7882,128.4,128.36,45.0]
[1725638292860,20.0,128.43,128.36,45.0]
[1725638292861,7.7887,128.39,128.36,45.0]
[1725638293448,7.7883,128.4,128.36,45.0]
[1725638294472,7.7882,128.4,128.36,45.0]
[1725638294850,7.7888,128.39,128.36,45.0]
[1725638295864,7.7895,128.38,128.35,43.76674131]
[1725638296170,7.7889,128.39,128.35,43.76674131]
[1725638296372,7.7889,128.39,128.35,45.32447777]
[1725638296686,7.7883,128.4,128.36,1.55773646]
[1725638296971,7.7861,128.44,128.39,51.55544131]
[1725638297182,15.2642,128.47,128.4,46.55715044]
[1725638297350,7.7849,128.46,128.41,51.55384131]
[1725638297546,7.7849,128.46,128.43,43.76674131]
[1725638297750,7.7849,128.46,128.44,1.55676318]
[1725638298158,15.1546,128.5,128.45,43.76674131]
[1725638298464,7.7837,128.48,128.45,43.76674131]
[1725638300078,7.7828,128.49,128.46,46.55657448]
[1725638300457,7.7828,128.49,128.46,45.0]
[1725638302081,7.7833,128.48,128.46,45.0]
[1725638302573,7.7845,128.46,128.43,43.76674131]
[1725638302789,7.7851,128.45,128.43,43.76674131]
[1725638302957,7.7851,128.45,128.42,16.6122]
[1725638303760,43.6658083,128.51,128.4,423.96674131]
[1725638304077,19.4607,128.47,128.4,423.96674131]
[1725638304267,7.7856,128.45,128.4,431.75484131]
[1725638304684,7.7856,128.45,128.42,43.76674131]
[1725638307367,7.7863,128.43,128.4,423.96674131]
[1725638307567,21.94618355,128.5,128.38,43.76674131]
[1725638307568,7.7887,128.39,128.38,43.76674131]
[1725638307874,7.7887,128.39,128.35,50.07734131]
[1725638308082,15.184,128.44,128.34,16.3781]
[1725638308258,7.7903,128.37,128.34,16.3781]
[1725638308457,7.7903,128.37,128.33,43.76674131]
[1725638308458,7.7906,128.36,128.33,43.76674131]
[1725638308662,7.7907,128.36,128.33,43.76674131]
[1725638309167,7.7895,128.38,128.33,53.11656208]
[1725638309493,7.7888,128.39,128.35,43.76674131]
[1725638309676,7.7888,128.39,128.35,45.32447964]
[1725638310185,7.7895,128.38,128.35,45.32447964]
[1725638310390,7.7895,128.38,128.35,43.76674131]
[1725638310767,7.7882,128.4,128.36,46.55778697]
[1725638311565,7.7889,128.39,128.35,43.76674131]
[1725638312674,7.7889,128.39,128.35,51.55774131]
[1725638312986,7.7883,128.4,128.36,45.0]
[1725638313964,19.4683,128.42,128.37,51.55664131]
[1725638313965,7.7873,128.42,128.37,51.55664131]
[1725638314169,7.7873,128.42,128.37,53.11407236]
[1725638314388,7.7882,128.4,128.38,45.0]
[1725638314685,7.7887,128.39,128.35,51.55774131]
[1725638314892,7.7887,128.39,128.36,45.0]
[1725638316969,7.7887,128.39,128.35,51.55774131]
[1725638317162,7.7887,128.39,128.35,43.76674131]
[1725638317496,19.4693,128.41,128.35,43.76674131]
[1725638317802,7.7902,128.37,128.35,43.76674131]
[1725638318374,7.7895,128.38,128.35,43.76674131]
[1725638318999,7.7901,128.37,128.35,43.76674131]
[1725638319501,7.7905,128.36,128.33,43.76674131]
[1725638319704,20.82606424,128.41,128.31,15.7777]
[1725638319705,7.7912,128.35,128.31,59.54444131]
[1725638319904,7.792,128.34,128.31,43.76674131]
[1725638320283,7.7924,128.33,128.29,57.73494131]
[1725638320597,7.7924,128.33,128.29,13.9682]
[1725638320783,1.94800164,128.37,128.27,19.4889]
[1725638320976,7.7948,128.29,128.25,14.2126]
[1725638321176,66.94800164,128.37,128.27,43.76674131]
[1725638321177,7.7922,128.34,128.27,43.76674131]
[1725638321412,2.81435097,128.37,128.3,7.7938]
[1725638321585,20.0,128.37,128.31,1.55826293]
[1725638321786,7.7913,128.35,128.31,1.55826293]
[1725638322008,19.20463978,128.38,128.31,45.32500424]
[1725638322174,7.7896,128.38,128.32,19.482]
[1725638322376,7.79,128.37,128.33,7.7922]
[1725638322597,2.81711912,128.39,128.31,45.32500424]
[1725638322799,19.4707,128.4,128.32,45.0]
[1725638323019,7.7907,128.36,128.31,54.35176293]
[1725638323302,7.7907,128.36,128.32,7.7928]
[1725638323485,7.7901,128.37,128.33,45.0]
[1725638323692,7.7894,128.38,128.33,54.35028431]
[1725638324031,7.79,128.37,128.33,54.35028431]
[1725638324380,7.79,128.37,128.33,45.0]
[1725638324584,7.79,128.37,128.33,52.7922]
[1725638325106,7.7894,128.38,128.33,52.7922]
[1725638325311,7.7894,128.38,128.33,54.35003918]
[1725638325512,7.7894,128.38,128.33,52.7922]
[1725638325888,7.7889,128.39,128.34,7.7917]
[1725638326111,7.7889,128.39,128.35,46.55772015]
[1725638326312,7.7893,128.38,128.34,7.7917]
[1725638326531,1.35676424,128.41,128.33,20.59789817]
[1725638326532,7.7888,128.39,128.33,20.59789817]
[1725638326697,7.7888,128.39,128.34,52.7917]
[1725638326890,7.7883,128.4,128.35,9.34866759]
[1725638327222,1.35676424,128.41,128.34,52.7916]
[1725638327521,7.7883,128.4,128.36,7.7904]
[1725638327696,6.3987,128.45,128.37,52.7898]
[1725638327903,7.75497261,128.45,128.37,46.55730468]
[1725638328707,35.3046,128.46,128.4,7.7877]
[1725638328708,18.68800746,128.46,128.4,7.7877]
[1725638329009,41.5766,128.49,128.41,45.0]
[1725638329426,7.784,128.47,128.42,7.7864]
[1725638329727,7.7845,128.46,128.43,1.55680533]
[1725638330290,7.7845,128.46,128.42,7.7864]
[1725638331108,7.7845,128.46,128.41,19.4685]
[1725638331109,7.7853,128.45,128.41,27.2558]
[1725638331317,7.7858,128.44,128.41,19.4685]
[1725638331689,7.7858,128.44,128.4,45.0]
[1725638331894,7.7863,128.43,128.4,45.0]
[1725638332109,7.7875,128.41,128.4,45.0]
[1725638332317,7.7865,128.43,128.4,45.0]
[1725638332608,7.7858,128.44,128.4,45.0]
[1725638333530,19.4617,128.46,128.4,45.0]
[1725638333709,7.7873,128.42,128.4,45.0]
[1725638334917,7.7858,128.44,128.4,52.7881]
[1725638335407,7.7858,128.44,128.4,45.0]
[1725638335607,7.7865,128.43,128.4,45.0]
[1725638338101,24.9630662,128.49,128.37,43.76674131]
[1725638338102,7.7873,128.42,128.37,1.5571173]
[1725638338304,7.7864,128.43,128.38,19.4728]
[1725638338613,7.7864,128.43,128.39,7.7886]
[1725638339423,7.7864,128.43,128.4,45.0]
[1725638339811,7.786,128.44,128.4,52.7879]
[1725638340017,7.7866,128.43,128.4,45.0]
[1725638342207,1.94642235,128.48,128.37,7.7898]
[1725638342413,65.0,128.48,128.38,7.7893]
[1725638342822,65.0,128.48,128.38,9.34653219]
[1725638343412,7.7871,128.42,128.38,7.7893]
[1725638343816,66.94661382,128.48,128.36,22.2244]
[1725638344040,7.789,128.39,128.36,22.2244]
[1725638344532,69.83473156,128.48,128.34,35.02177777]
[1725638344706,7.7896,128.38,128.34,42.81347777]
[1725638344913,7.789,128.39,128.35,7.7911]
[1725638345111,7.7868,128.43,128.38,7.7887]
[1725638345320,7.7868,128.43,128.39,1.5572345]
[1725638345520,16.4548,128.47,128.4,1.55721777]
[1725638345521,7.7871,128.42,128.4,1.55721777]
[1725638346217,7.7859,128.44,128.4,36.57899554]
[1725638346425,7.7859,128.44,128.41,45.0]
[1725638346611,7.7859,128.44,128.42,1.55701593]
[1725638346930,7.7863,128.43,128.42,1.55701593]
[1725638347133,7.7863,128.43,128.41,45.0]
[1725638347438,7.7863,128.43,128.4,46.55701821]
[1725638348017,7.786,128.44,128.4,46.55701821]
[1725638348215,7.7867,128.43,128.4,45.0]
[1725638349335,7.7871,128.42,128.4,45.0]
[1725638349540,7.7865,128.43,128.4,45.0]
[1725638351214,7.7841,128.47,128.43,7.7862]
[1725638351419,7.7846,128.46,128.42,27.2537]
[1725638351711,7.7846,128.46,128.43,45.0]
[1725638354828,7.7844,128.47,128.43,46.55669095]
[1725638355032,7.7835,128.48,128.43,54.34239095]
[1725638355235,19.4564,128.5,128.43,54.34239095]
[1725638355236,7.784,128.47,128.43,54.34239095]
[1725638355441,7.784,128.47,128.43,52.7857]
[1725638357123,7.784,128.47,128.43,54.34224767]
[1725638357837,7.7845,128.46,128.43,45.0]
[1725638358517,7.7845,128.46,128.43,46.55663431]
[1725638358918,7.7845,128.46,128.43,45.0]
[1725638359443,7.7841,128.47,128.43,46.55663589]
[1725638359650,7.7841,128.47,128.43,54.34283589]
[1725638360329,2.89419214,128.51,128.43,46.55663589]
[1725638360531,1.34375684,128.54,128.44,66.88638925]
[1725638360729,17.3352169,128.57,128.46,43.77488925]
[1725638360929,17.3352169,128.57,128.48,43.77488925]
[1725638361235,3.66499494,128.57,128.5,23.1115]
[1725638361749,3.66499494,128.57,128.51,45.0]
[1725638362038,3.66499494,128.57,128.52,1.55561789]
[1725638362241,3.66499494,128.57,128.51,46.55555147]
[1725638362448,3.66499494,128.57,128.51,45.0]
[1725638362615,3.66499494,128.57,128.51,46.55556096]
[1725638363017,3.66499494,128.57,128.51,45.0]
[1725638363539,1.9447346,128.56,128.47,21.3973]
[1725638363719,21.9447346,128.56,128.47,21.3973]
[1725638364040,20.0,128.56,128.47,21.3973]
[1725638364227,20.0,128.56,128.47,22.95328302]
[1725638364429,3.66499494,128.57,128.47,22.95328302]
[1725638365143,3.66499494,128.57,128.48,45.0]
[1725638366852,6.5152,128.56,128.48,45.0]
[1725638367145,16.2766,128.54,128.42,65.28658925]
[1725638367328,1.94537408,128.53,128.42,21.5117]
[1725638367518,21.94537408,128.53,128.42,21.5117]
[1725638367723,20.0,128.53,128.43,1.11495411]
[1725638368841,20.0,128.53,128.43,46.11495411]
[1725638369541,20.0,128.53,128.43,45.0]
[1725638370342,20.0,128.53,128.44,35.00037458]
[1725638370540,20.0,128.53,128.45,45.0]
[1725638371249,20.0,128.53,128.52,9.75836602]
[1725638371435,20.0,128.53,128.52,6.61528902]
[1725638371753,20.0,128.53,128.52,23.37927871]
[1725638371949,20.0,128.53,128.52,13.62091269]
[1725638372127,20.0,128.53,128.52,6.61528902]
[1725638373027,20.0,128.53,128.52,1.9516732]
[1725638373444,20.0,128.53,128.48,9.75802374]
[1725638373751,20.0,128.53,128.49,8.95690115]
[1725638373935,20.0,128.53,128.5,13.62026763]
[1725638374137,20.0,128.53,128.51,6.61497122]
[1725638374342,20.0,128.53,128.52,1.95160474]
[1725638374541,22.89991257,128.53,128.52,1.95160474]
[1725638375135,22.89991257,128.53,128.49,4.66336508]
[1725638375453,22.89991257,128.53,128.5,1.95159399]
[1725638375842,22.89991257,128.53,128.51,1.95159399]
[1725638376044,22.89991257,128.53,128.47,9.75796751]
[1725638376343,22.89991257,128.53,128.48,6.61484878]
[1725638376549,22.89991257,128.53,128.49,1.95158224]
[1725638376750,22.89991257,128.53,128.47,7.00590352]
[1725638376945,22.89991257,128.53,128.41,35.00037458]
[1725638377140,22.89991257,128.53,128.48,6.61554218]
[1725638377341,22.89991257,128.53,128.46,11.66970395]
[1725638377541,22.89991257,128.53,128.47,6.61556706]
[1725638377739,22.89991257,128.53,128.48,1.95175039]
[1725638377935,22.89991257,128.53,128.47,4.66385777]
[1725638378141,22.89991257,128.53,128.46,1.95173621]
[1725638378657,22.89991257,128.53,128.45,1.95173621]
[1725638378827,22.89991257,128.53,128.46,1.95173621]
[1725638379030,22.89991257,128.53,128.44,49.66385777]
[1725638379444,22.89991257,128.53,128.44,45.0]
[1725638379637,22.89991257,128.53,128.43,46.95173621]
[1725638380055,22.89991257,128.53,128.43,46.55657478]
[1725638380229,22.89991257,128.53,128.43,48.50846046]
[1725638380432,6.4296,128.51,128.43,1.95188568]
[1725638380646,6.4296,128.51,128.42,4.66439418]
[1725638380647,15.3132,128.49,128.42,4.66439418]
[1725638380851,21.94632128,128.48,128.41,1.9518759]
[1725638381056,21.94644666,128.48,128.4,13.62296462]
[1725638381249,46.34493376,128.47,128.4,7.00669454]
[1725638381550,6.127,128.45,128.4,7.00669454]
[1725638381759,8.07367039,128.45,128.4,7.00669454]
[1725638381928,15.9128,128.43,128.4,7.00669454]
[1725638384758,1.94713313,128.42,128.4,7.00669454]
[1725638385053,15.9128,128.43,128.4,7.00669454]
[1725638385252,20.0,128.42,128.4,7.00669454]
[1725638386251,20.0,128.42,128.34,1.55770201]
[1725638386438,20.0,128.42,128.34,45.0]
[1725638387361,20.0,128.42,128.34,425.2]
[1725638389153,20.0,128.42,128.34,45.0]